fUSD/lending_fUSD_20250809
["ID","MTS","AMOUNT","RATE_DAILY","PERIOD"]
[378068068,1754716261615,-848.32,0.00024657,2]
[378068069,1754716261624,-400.0,0.00024657,2]
[378068070,1754716261633,-400.0,0.00024657,2]
[378068071,1754716261643,-400.0,0.00024657,2]
[378068072,1754716261653,-400.0,0.00024657,2]
[378068073,1754716261662,-400.0,0.00024657,2]
[378068074,1754716261672,-410.54188544,0.00024657,2]
[378068075,1754716261682,-412.14200386,0.00024657,2]
[378068077,1754716261691,-400.0,0.00024657,2]
[378068078,1754716261700,-277.87093105,0.00024657,2]
[378068080,1754716261710,-400.0,0.00024657,2]
[378068082,1754716261719,-400.0,0.00024657,2]
[378068084,1754716261729,-654.75,0.00024657,2]
[378068086,1754716261738,-400.0,0.00024657,2]
[378068088,1754716261747,-515.991562,0.00024657,2]
[378068090,1754716261756,-410.27544756,0.00024657,2]
[378068092,1754716261766,-400.0,0.00024657,2]
[378068094,1754716261775,-401.11923087,0.00024657,2]
[378068096,1754716261785,-400.0,0.00024657,2]
[378068098,1754716261795,-604.11,0.00024657,2]
[378068100,1754716261805,-400.0,0.00024657,2]
[378068102,1754716261817,-410.00005008,0.00024657,2]
[378068104,1754716261830,-400.0,0.00024657,2]
[378068106,1754716261839,-400.0,0.00024657,2]
[378068108,1754716261848,-400.0,0.00024657,2]
[378068110,1754716261858,-614.85,0.00024657,2]
[378068112,1754716261867,-400.0,0.00024657,2]
[378068114,1754716261877,-474.68,0.00024657,2]
[378068116,1754716261886,-400.0,0.00024657,2]
[378068118,1754716261896,-405.16928438,0.00024657,2]
[378068120,1754716261906,-400.0,0.00024657,2]
[378068122,1754716261915,-402.01234983,0.00024657,2]
[378068124,1754716261924,-400.0,0.00024657,2]
[378068126,1754716261933,-402.26789393,0.00024657,2]
[378068128,1754716261943,-403.63037539,0.00024657,2]
[378068130,1754716261952,-400.0,0.00024657,2]
[378068132,1754716261962,-404.20626686,0.00024657,2]
[378068134,1754716261972,-613.55,0.00024657,2]
[378068136,1754716261981,-400.0,0.00024657,2]
[378068138,1754716261991,-400.0,0.00024657,2]
[378068140,1754716262001,-400.0,0.00024657,2]
[378068142,1754716262010,-400.0,0.00024657,2]
[378068144,1754716262019,-400.0,0.00024657,2]
[378068146,1754716262029,-400.0,0.00024657,2]
[378068148,1754716262039,-418.26498164,0.00024657,2]
[378068150,1754716262048,-400.0,0.00024657,2]
[378068152,1754716262058,-400.0,0.00024657,2]
[378068154,1754716262069,-422.61,0.00024657,2]
[378068156,1754716262079,-400.0,0.00024657,2]
[378068158,1754716262088,-400.0,0.00024657,2]
[378068160,1754716262097,-443.98,0.00024657,2]
[378068162,1754716262106,-400.0,0.00024657,2]
[378068164,1754716262116,-400.0,0.00024657,2]
[378068166,1754716262129,-415.03,0.00024657,2]
[378068168,1754716262139,-400.0,0.00024657,2]
[378068170,1754716262148,-400.0,0.00024657,2]
[378068172,1754716262158,-400.0,0.00024657,2]
[378068174,1754716262169,-400.0,0.00024657,2]
[378068177,1754716262179,-400.0,0.00024657,2]
[378068178,1754716262188,-400.0,0.00024657,2]
[378068181,1754716262199,-402.41130894,0.00024657,2]
[378068183,1754716262209,-400.0,0.00024657,2]
[378068184,1754716262219,-402.20299888,0.00024657,2]
[378068187,1754716262230,-400.0,0.00024657,2]
[378068188,1754716262241,-400.0,0.00024657,2]
[378068191,1754716262251,-402.32609133,0.00024657,2]
[378068192,1754716262260,-400.0,0.00024657,2]
[378068194,1754716262270,-401.70681373,0.00024657,2]
[378068197,1754716262280,-587.83,0.00024657,2]
[378068199,1754716262290,-494.91,0.00024657,2]
[378068201,1754716262299,-400.0,0.00024657,2]
[378068203,1754716262312,-502.64202594,0.00024657,2]
[378068205,1754716262322,-419.10249663,0.00024657,2]
[378068207,1754716262332,-400.0,0.00024657,2]
[378068227,1754716262500,-413.22766166,0.00024657,2]
[378068230,1754716262539,-400.0,0.00024657,2]
[378068232,1754716262549,-404.74644503,0.00024657,2]
[378068234,1754716262558,-400.0,0.00024657,2]
[378068236,1754716262572,-400.0,0.00024657,2]
[378068238,1754716262583,-400.0,0.00024657,2]
[378068240,1754716262594,-400.0,0.00024657,2]
[378068243,1754716262604,-400.0,0.00024657,2]
[378068245,1754716262613,-400.0,0.00024657,2]
[378068247,1754716262623,-520.01,0.00024657,2]
[378068249,1754716262633,-400.0,0.00024657,2]
[378068251,1754716262643,-400.0,0.00024657,2]
[378068253,1754716262653,-400.0,0.00024657,2]
[378068255,1754716262663,-400.0,0.00024657,2]
[378068257,1754716262674,-400.94974278,0.00024657,2]
[378068259,1754716262684,-958.22,0.00024657,2]
[378068261,1754716262694,-400.0,0.00024657,2]
[378068263,1754716262704,-400.0,0.00024657,2]
[378068265,1754716262714,-400.0,0.00024657,2]
[378068267,1754716262724,-400.0,0.00024657,2]
[378068269,1754716262733,-400.0,0.00024657,2]
[378068271,1754716262743,-403.5330011,0.00024657,2]
[378068273,1754716262753,-400.0,0.00024657,2]
[378068275,1754716262764,-400.0,0.00024657,2]
[378068278,1754716262774,-400.0,0.00024657,2]
[378068280,1754716262783,-402.83191649,0.00024657,2]
[378068281,1754716262793,-400.97853921,0.00024657,2]
[378068284,1754716262804,-1890.64133214,0.00024657,2]
[378068285,1754716262819,-400.0,0.00024657,2]
[378068287,1754716262828,-400.0,0.00024657,2]
[378068290,1754716262838,-400.0,0.00024657,2]
[378068292,1754716262848,-400.0,0.00024657,2]
[378068294,1754716262857,-400.0,0.00024657,2]
[378068295,1754716262867,-400.0,0.00024657,2]
[378068298,1754716262876,-400.0,0.00024657,2]
[378068300,1754716262887,-595.82,0.00024657,2]
[378068302,1754716262897,-151.0,0.00024657,7]
[378068304,1754716262907,-411.97836419,0.00024657,2]
[378068306,1754716262918,-151.0,0.00024657,7]
[378068308,1754716262928,-400.0,0.00024657,2]
[378068310,1754716262938,-151.0,0.00024657,7]
[378068312,1754716262948,-400.0,0.00024657,2]
[378068314,1754716262958,-342.74388107,0.00024657,2]
[378068316,1754716262968,-405.01644898,0.00024657,2]
[378068318,1754716262978,-400.0,0.00024657,2]
[378068320,1754716262987,-400.0,0.00024657,2]
[378068322,1754716262996,-605.15,0.00024657,2]
[378068324,1754716263006,-400.0,0.00024657,2]
[378068326,1754716263016,-400.0,0.00024657,2]
[378068328,1754716263028,-400.0,0.00024657,2]
[378068330,1754716263038,-405.79747184,0.00024657,2]
[378068332,1754716263048,-400.0,0.00024657,2]
[378068334,1754716263058,-400.0,0.00024657,2]
[378068336,1754716263071,-400.0,0.00024657,2]
[378068338,1754716263081,-400.0,0.00024657,2]
[378068340,1754716263091,-400.0,0.00024657,2]
[378068342,1754716263102,-400.0,0.00024657,2]
[378068344,1754716263113,-400.0,0.00024657,2]
[378068346,1754716263125,-400.0,0.00024657,2]
[378068348,1754716263136,-402.42542941,0.00024657,2]
[378068350,1754716263146,-400.0,0.00024657,2]
[378068352,1754716263156,-400.0,0.00024657,2]
[378068354,1754716263167,-400.0,0.00024657,2]
[378068356,1754716263177,-400.0,0.00024657,2]
[378068358,1754716263186,-400.0,0.00024657,2]
[378068360,1754716263196,-400.0,0.00024657,2]
[378068362,1754716263207,-403.33452094,0.00024657,2]
[378068364,1754716263218,-400.0,0.00024657,2]
[378068366,1754716263228,-400.0,0.00024657,2]
[378068368,1754716263238,-403.32196414,0.00024657,2]
[378068370,1754716263248,-400.0,0.00024657,2]
[378068372,1754716263258,-400.0,0.00024657,2]
[378068374,1754716263268,-707.28,0.00024657,2]
[378068376,1754716263277,-400.0,0.00024657,2]
[378068378,1754716263287,-400.0,0.00024657,2]
[378068380,1754716263297,-400.0,0.00024657,2]
[378068382,1754716263307,-445.94,0.00024657,2]
[378068384,1754716263319,-400.0,0.00024657,2]
[378068386,1754716263329,-400.0,0.00024657,2]
[378068388,1754716263339,-658.13,0.00024657,2]
[378068390,1754716263349,-400.0,0.00024657,2]
[378068392,1754716263360,-400.0,0.00024657,2]
[378068394,1754716263370,-400.0,0.00024657,2]
[378068396,1754716263380,-400.0,0.00024657,2]
[378068398,1754716263390,-400.0,0.00024657,2]
[378068400,1754716263399,-400.0,0.00024657,2]
[378068402,1754716263409,-400.0,0.00024657,2]
[378068404,1754716263419,-400.0,0.00024657,2]
[378068406,1754716263428,-400.0,0.00024657,2]
[378068408,1754716263438,-400.0,0.00024657,2]
[378068410,1754716263447,-400.0,0.00024657,2]
[378068412,1754716263457,-400.0,0.00024657,2]
[378068414,1754716263467,-842.64,0.00024657,2]
[378068416,1754716263478,-400.0,0.00024657,2]
[378068418,1754716263498,-579.33,0.00024657,2]
[378068420,1754716263518,-400.0,0.00024657,2]
[378068422,1754716263536,-401.33583813,0.00024657,2]
[378068424,1754716263547,-400.0,0.00024657,2]
[378068426,1754716263556,-400.0,0.00024657,2]
[378068428,1754716263570,-400.0,0.00024657,2]
[378068430,1754716263581,-400.0,0.00024657,2]
[378068432,1754716263591,-400.0,0.00024657,2]
[378068434,1754716263602,-1064.98078593,0.00024657,2]
[378068436,1754716263611,-151.0,0.00024657,7]
[378068438,1754716263621,-153.611538,0.00024657,7]
[378068440,1754716263632,-400.0,0.00024657,2]
[378068442,1754716263641,-400.0,0.00024657,2]
[378068444,1754716263651,-400.0,0.00024657,2]
[378068446,1754716263661,-400.0,0.00024657,2]
[378068448,1754716263671,-400.0,0.00024657,2]
[378068450,1754716263681,-400.0,0.00024657,2]
[378068452,1754716263691,-400.0,0.00024657,2]
[378068455,1754716263702,-401.38962981,0.00024657,7]
[378068457,1754716263711,-400.0,0.00024657,2]
[378068458,1754716263720,-400.0,0.00024657,2]
[378068461,1754716263730,-402.68030903,0.00024657,2]
[378068463,1754716263740,-400.0,0.00024657,2]
[378068464,1754716263749,-400.0,0.00024657,2]
[378068466,1754716263760,-428.91,0.00024657,2]
[378068469,1754716263770,-400.0,0.00024657,2]
[378068471,1754716263779,-400.0,0.00024657,2]
[378068472,1754716263789,-400.0,0.00024657,2]
[378068473,1754716263799,-400.0,0.00024657,2]
[378068474,1754716263813,-447.48,0.00024657,2]
[378068475,1754716263823,-400.0,0.00024657,2]
[378068476,1754716263832,-401.45628926,0.00024657,2]
[378068477,1754716263842,-407.39749898,0.00024657,2]
[378068478,1754716263852,-400.0,0.00024657,2]
[378068479,1754716263863,-401.9048001,0.00024657,2]
[378068480,1754716263873,-779.93,0.00024657,2]
[378068481,1754716263884,-400.0,0.00024657,2]
[378068482,1754716263894,-400.0,0.00024657,2]
[378068483,1754716263904,-400.0,0.00024657,2]
[378068484,1754716263914,-400.0,0.00024657,2]
[378068485,1754716263925,-400.0,0.00024657,2]
[378068486,1754716263935,-400.0,0.00024657,2]
[378068487,1754716263945,-400.0,0.00024657,2]
[378068488,1754716263954,-400.0,0.00024657,2]
[378068489,1754716263964,-400.0,0.00024657,2]
[378068490,1754716263974,-400.0,0.00024657,2]
[378068491,1754716263984,-400.0,0.00024657,2]
[378068492,1754716263994,-400.0,0.00024657,2]
[378068494,1754716264004,-2647.03,0.00024657,2]
[378068496,1754716264014,-400.0,0.00024657,2]
[378068498,1754716264024,-407.20658223,0.00024657,2]
[378068500,1754716264034,-400.0,0.00024657,2]
[378068502,1754716264044,-400.0,0.00024657,2]
[378068504,1754716264054,-403.69000574,0.00024657,2]
[378068506,1754716264065,-1000.0,0.00024657,2]
[378068508,1754716264075,-425.82,0.00024657,2]
[378068510,1754716264084,-400.0,0.00024657,2]
[378068512,1754716264094,-400.0,0.00024657,2]
[378068514,1754716264104,-404.24540633,0.00024657,2]
[378068516,1754716264115,-400.0,0.00024657,2]
[378068518,1754716264129,-559.98,0.00024657,2]
[378068520,1754716264139,-400.0,0.00024657,2]
[378068522,1754716264149,-400.0,0.00024657,2]
[378068524,1754716264159,-445.11,0.00024657,2]
[378068526,1754716264171,-400.0,0.00024657,2]
[378068528,1754716264181,-400.0,0.00024657,2]
[378068530,1754716264191,-400.0,0.00024657,2]
[378068532,1754716264202,-400.0,0.00024657,2]
[378068534,1754716264212,-400.0,0.00024657,2]
[378068536,1754716264223,-400.0,0.00024657,2]
[378068538,1754716264233,-410.31580827,0.00024657,2]
[378068540,1754716264243,-296.13821426,0.00024657,2]
[378068542,1754716264253,-502.56231033,0.00024657,2]
[378068544,1754716264264,-400.0,0.00024657,2]
[378068547,1754716264274,-408.41201346,0.00024657,2]
[378068549,1754716264285,-400.0,0.00024657,2]
[378068551,1754716264294,-400.0,0.00024657,2]
[378068553,1754716264304,-400.0,0.00024657,2]
[378068555,1754716264315,-400.0,0.00024657,2]
[378068557,1754716264325,-400.0,0.00024657,2]
[378068559,1754716264334,-400.0,0.00024657,2]
[378068561,1754716264344,-500.0,0.00024657,2]
[378068562,1754716264355,-400.0,0.00024657,2]
[378068564,1754716264367,-500.0,0.00024657,2]
[378068566,1754716264376,-500.0,0.00024657,2]
[378068568,1754716264386,-400.0,0.00024657,2]
[378068570,1754716264396,-417.89281027,0.00024657,2]
[378068572,1754716264406,-407.00460399,0.00024657,2]
[378068574,1754716264416,-400.0,0.00024657,2]
[378068576,1754716264426,-401.59190683,0.00024657,2]
[378068578,1754716264436,-400.0,0.00024657,2]
[378068580,1754716264446,-400.0,0.00024657,2]
[378068582,1754716264456,-667.29,0.00024657,2]
[378068584,1754716264466,-400.0,0.00024657,2]
[378068586,1754716264476,-742.79,0.00024657,2]
[378068588,1754716264485,-405.42428036,0.00024657,2]
[378068590,1754716264495,-400.0,0.00024657,2]
[378068593,1754716264505,-403.88269058,0.00024657,2]
[378068594,1754716264514,-498.44,0.00024657,2]
[378068597,1754716264524,-400.0,0.00024657,2]
[378068599,1754716264534,-400.0,0.00024657,2]
[378068600,1754716264544,-400.0,0.00024657,2]
[378068601,1754716264554,-400.0,0.00024657,2]
[378068602,1754716264567,-400.0,0.00024657,2]
[378068603,1754716264578,-400.0,0.00024657,2]
[378068604,1754716264588,-390.6737734,0.00024657,2]
[378068605,1754716264598,-400.0,0.00024657,2]
[378068606,1754716264608,-400.0,0.00024657,2]
[378068607,1754716264617,-400.0,0.00024657,2]
[378068608,1754716264627,-460.83346725,0.00024657,2]
[378068610,1754716264637,-400.0,0.00024657,2]
[378068612,1754716264648,-409.28611909,0.00024657,2]
[378068614,1754716264658,-1174.17,0.00024657,2]
[378068616,1754716264668,-400.0,0.00024657,2]
[378068618,1754716264677,-400.0,0.00024657,2]
[378068620,1754716264686,-405.24993866,0.00024657,2]
[378068622,1754716264696,-659.93,0.00024657,2]
[378068624,1754716264706,-404.12308892,0.00024657,2]
[378068626,1754716264715,-400.0,0.00024657,2]
[378068628,1754716264725,-400.0,0.00024657,2]
[378068630,1754716264735,-400.0,0.00024657,2]
[378068631,1754716264745,-400.0,0.00024657,2]
[378068633,1754716264754,-400.0,0.00024657,2]
[378068635,1754716264763,-400.0,0.00024657,2]
[378068637,1754716264773,-460.02664213,0.00024657,2]
[378068639,1754716264783,-401.82756657,0.00024657,2]
[378068641,1754716264792,-400.0,0.00024657,2]
[378068643,1754716264801,-402.33807266,0.00024657,2]
[378068645,1754716264813,-400.0,0.00024657,2]
[378068647,1754716264822,-515.83007053,0.00024657,2]
[378068649,1754716264832,-400.0,0.00024657,2]
[378068651,1754716264842,-400.0,0.00024657,2]
[378068653,1754716264852,-400.0,0.00024657,2]
[378068655,1754716264861,-400.0,0.00024657,2]
[378068657,1754716264871,-404.63957494,0.00024657,2]
[378068659,1754716264880,-400.0,0.00024657,2]
[378068661,1754716264890,-401.54839318,0.00024657,2]
[378068663,1754716264900,-410.5901917,0.00024657,2]
[378068665,1754716264909,-400.0,0.00024657,2]
[378068667,1754716264919,-400.0,0.00024657,2]
[378068670,1754716264928,-500.7,0.00024657,2]
[378068672,1754716264938,-409.99712364,0.00024657,2]
[378068674,1754716264947,-400.0,0.00024657,2]
[378068676,1754716264957,-400.0,0.00024657,2]
[378068678,1754716264966,-400.0,0.00024657,2]
[378068680,1754716264975,-400.0,0.00024657,2]
[378068681,1754716264984,-403.54648713,0.00024657,2]
[378068683,1754716264994,-957.38,0.00024657,2]
[378068686,1754716265003,-400.0,0.00024657,2]
[378068687,1754716265013,-400.0,0.00024657,2]
[378068690,1754716265023,-887.08,0.00024657,2]
[378068695,1754716265083,-887.08,0.00024657,2]
[378068697,1754716265093,-887.08,0.00024657,2]
[378068699,1754716265102,-400.0,0.00024657,2]
[378068701,1754716265112,-442.14479909,0.00024657,2]
[378068703,1754716265123,-408.89486125,0.00024657,2]
[378068705,1754716265133,-887.08,0.00024657,2]
[378068707,1754716265143,-349.54996886,0.00024657,2]
[378068709,1754716265152,-887.08,0.00024657,2]
[378068712,1754716265163,-887.08,0.00024657,2]
[378068713,1754716265172,-887.08,0.00024657,2]
[378068715,1754716265182,-400.0,0.00024657,2]
[378068718,1754716265192,-400.0,0.00024657,2]
[378068720,1754716265205,-400.0,0.00024657,2]
[378068721,1754716265214,-400.0,0.00024657,2]
[378068723,1754716265224,-400.0,0.00024657,2]
[378068726,1754716265234,-400.0,0.00024657,2]
[378068728,1754716265243,-569.1,0.00024657,2]
[378068730,1754716265253,-409.88681434,0.00024657,2]
[378068731,1754716265262,-400.0,0.00024657,2]
[378068734,1754716265272,-400.0,0.00024657,2]
[378068736,1754716265282,-400.0,0.00024657,2]
[378068738,1754716265291,-400.0,0.00024657,2]
[378068739,1754716265301,-400.0,0.00024657,2]
[378068741,1754716265312,-400.0,0.00024657,2]
[378068743,1754716265322,-500.0,0.00024657,2]
[378068745,1754716265331,-500.0,0.00024657,2]
[378068747,1754716265340,-400.0,0.00024657,2]
[378068749,1754716265350,-500.0,0.00024657,2]
[378068752,1754716265359,-500.0,0.00024657,2]
[378068753,1754716265368,-400.0,0.00024657,2]
[378068755,1754716265378,-438.30639433,0.00024657,2]
[378068757,1754716265387,-400.0,0.00024657,2]
[378068760,1754716265396,-400.0,0.00024657,2]
[378068761,1754716265406,-401.35643892,0.00024657,2]
[378068764,1754716265416,-471.36,0.00024657,2]
[378068765,1754716265425,-470.79,0.00024657,2]
[378068768,1754716265435,-1217.99,0.00024657,2]
[378068769,1754716265445,-403.63757974,0.00024657,2]
[378068771,1754716265456,-404.09274677,0.00024657,2]
[378068773,1754716265465,-400.0,0.00024657,2]
[378068775,1754716265475,-400.0,0.00024657,2]
[378068777,1754716265484,-400.0,0.00024657,2]
[378068780,1754716265495,-400.0,0.00024657,2]
[378068782,1754716265504,-400.0,0.00024657,2]
[378068784,1754716265514,-400.0,0.00024657,2]
[378068786,1754716265524,-400.0,0.00024657,2]
[378068788,1754716265533,-400.0,0.00024657,2]
[378068790,1754716265543,-400.0,0.00024657,2]
[378068792,1754716265552,-400.0,0.00024657,2]
[378068794,1754716265562,-400.0,0.00024657,2]
[378068795,1754716265571,-400.0,0.00024657,2]
[378068797,1754716265580,-406.15968293,0.00024657,2]
[378068799,1754716265590,-400.0,0.00024657,2]
[378068801,1754716265599,-400.0,0.00024657,2]
[378068803,1754716265609,-151.0,0.00024658,7]
[378068805,1754716265618,-151.0,0.00024658,7]
[378068807,1754716265628,-150.0,0.00024671,4]
[378068809,1754716265637,-500.0,0.00024673,2]
[378068811,1754716265651,-504.76392915,0.00024673,2]
[378068813,1754716265660,-150.0,0.00024673,2]
[378068815,1754716265670,-503.2300039,0.00024673,2]
[378068817,1754716265679,-504.44880532,0.00024673,2]
[378068819,1754716265689,-150.0,0.00024682,4]
[378068821,1754716265699,-150.0,0.00024691,4]
[378068823,1754716265708,-1016.76631757,0.000247,2]
[378068825,1754716265718,-1200.0,0.000247,9]
[378068827,1754716265727,-168.0,0.00024723,2]
[378068829,1754716265738,-150.0,0.00024738,4]
[378068831,1754716265747,-500.0,0.00024773,2]
[378068833,1754716265757,-150.0,0.00024775,2]
[378068836,1754716265766,-522.1798337,0.00024777,2]
[378068837,1754716265776,-665.52331746,0.00024778,2]
[378068840,1754716265786,-705.6,0.00024779,2]
[378068842,1754716265795,-808.86680122,0.0002478,2]
[378068844,1754716265805,-952.21028498,0.00024782,2]
[378068846,1754716265818,-500.0,0.00024782,2]
[378068848,1754716265828,-766.52,0.00024782,2]
[378068850,1754716265837,-1095.55376874,0.00024783,2]
[378068852,1754716265847,-19349.9026856,0.00024783,2]
[378068854,1754716265858,-68857.7094128,0.00024783,2]
[378068856,1754716265868,-75867.0583084,0.00024783,2]
[378068858,1754716265878,-2543.0331343,0.00024783,2]
[378068860,1754716265888,-1238.8972525,0.00024785,2]
[378068862,1754716265897,-1382.24073626,0.00024787,2]
[378068864,1754716265907,-1525.58422002,0.00024788,2]
[378068866,1754716265917,-1668.92770377,0.0002479,2]
[378068868,1754716265928,-168.39664905,0.00024795,4]
[378068870,1754716265938,-218.6375802,0.00024795,4]
[378068872,1754716265947,-167.64805807,0.00024795,4]
[378068874,1754716265957,-162.12035715,0.00024795,4]
[378068876,1754716265967,-154.49539348,0.00024795,4]
[378068878,1754716265977,-289.91054713,0.00024795,4]
[378068880,1754716265988,-233.01995604,0.00024795,4]
[378068883,1754716265998,-299.38827655,0.00024795,4]
[378068885,1754716266008,-156.17942367,0.00024795,4]
[378068887,1754716266018,-255.89116141,0.00024795,4]
[378068889,1754716266028,-887.08,0.00024799,2]
[378068891,1754716266039,-887.08,0.00024799,2]
[378068893,1754716266049,-887.08,0.00024799,2]
[378068895,1754716266059,-1600.0,0.000248,9]
[378068897,1754716266071,-611264.296636,0.000248,2]
[378068899,1754716266080,-1139.5272086,0.000248,2]
[378068901,1754716266091,-2789.32101215,0.00024814,2]
[378068903,1754716266100,-404.44,0.00024834,2]
[378068905,1754716266110,-168.0,0.00024846,2]
[378068907,1754716266122,-150.0,0.00024858,2]
[378068909,1754716266133,-533.45906261,0.0002486,2]
[378068911,1754716266143,-679.89880529,0.00024861,2]
[378068913,1754716266152,-826.33854797,0.00024863,2]
[378068915,1754716266163,-972.77829064,0.00024865,2]
[378068917,1754716266172,-500.0,0.00024865,2]
[378068919,1754716266182,-766.52,0.00024865,2]
[378068921,1754716266192,-1119.21803332,0.00024866,2]
[378068923,1754716266202,-168.0,0.00024868,2]
[378068925,1754716266212,-1265.657776,0.00024868,2]
[378068927,1754716266222,-1412.09751868,0.0002487,2]
[378068929,1754716266232,-1558.53726135,0.00024871,2]
[378068931,1754716266242,-1704.97700404,0.00024873,2]
[378068933,1754716266252,-500.0,0.00024899,2]
[378068935,1754716266262,-766.52,0.00024899,2]
[378068937,1754716266272,-887.08,0.00024899,2]
[378068939,1754716266282,-887.08,0.00024899,2]
[378068942,1754716266294,-887.08,0.00024899,2]
[378068944,1754716266303,-2000.0,0.000249,9]
[378068946,1754716266317,-617.90847157,0.000249,2]
[378068948,1754716266326,-249663.923118,0.000249,2]
[378068950,1754716266336,-16513.8009983,0.00024914,2]
[378068952,1754716266347,-58878.9236388,0.00024914,2]
[378068954,1754716266358,-64585.8784296,0.00024914,2]
[378068956,1754716266368,-2164.8925438,0.00024914,2]
[378068958,1754716266378,-500.0,0.0002493,2]
[378068960,1754716266388,-500.0,0.0002493,2]
[378068962,1754716266398,-766.52,0.0002493,2]
[378068964,1754716266409,-766.52,0.0002493,2]
[378068966,1754716266419,-887.08,0.0002493,2]
[378068968,1754716266429,-887.08,0.0002493,2]
[378068970,1754716266438,-290.48263,0.00024931,2]
[378068972,1754716266448,-405.9608202,0.00024931,2]
[378068974,1754716266458,-400.0,0.00024931,2]
[378068976,1754716266469,-400.0,0.00024931,2]
[378068978,1754716266479,-400.0,0.00024931,2]
[378068980,1754716266493,-400.0,0.00024931,2]
[378068982,1754716266510,-400.0,0.00024931,2]
[378068984,1754716266526,-402.52754576,0.00024931,2]
[378068986,1754716266536,-425.03045597,0.00024931,2]
[378068988,1754716266546,-404.09976252,0.00024931,2]
[378068990,1754716266556,-400.0,0.00024931,2]
[378068992,1754716266569,-400.0,0.00024931,2]
[378068994,1754716266579,-400.0,0.00024931,2]
[378068996,1754716266589,-400.0,0.00024931,2]
[378068998,1754716266599,-401.92401227,0.00024931,2]
[378069000,1754716266608,-400.0,0.00024931,2]
[378069003,1754716266618,-403.99193127,0.00024931,2]
[378069005,1754716266627,-504.51244749,0.00024931,2]
[378069007,1754716266637,-400.0,0.00024931,2]
[378069009,1754716266646,-400.0,0.00024931,2]
[378069010,1754716266657,-404.69325285,0.00024931,2]
[378069013,1754716266666,-400.0,0.00024931,2]
[378069014,1754716266676,-400.0,0.00024931,2]
[378069016,1754716266686,-400.0,0.00024931,2]
[378069018,1754716266696,-400.0,0.00024931,2]
[378069020,1754716266706,-412.95020354,0.00024931,2]
[378069023,1754716266716,-400.0,0.00024931,2]
[378069025,1754716266726,-400.0,0.00024931,2]
[378069027,1754716266735,-400.0,0.00024931,2]
[378069029,1754716266746,-400.0,0.00024931,2]
[378069031,1754716266756,-400.0,0.00024931,2]
[378069033,1754716266765,-400.0,0.00024931,2]
[378069035,1754716266775,-400.0,0.00024931,2]
[378069037,1754716266784,-400.0,0.00024931,2]
[378069039,1754716266795,-400.38020408,0.00024931,2]
[378069041,1754716266805,-400.0,0.00024931,2]
[378069043,1754716266816,-410.2344869,0.00024931,2]
[378069045,1754716266825,-435.75404397,0.00024931,2]
[378069047,1754716266835,-407.02822814,0.00024931,2]
[378069049,1754716266844,-402.46462909,0.00024931,2]
[378069051,1754716266854,-405.48478716,0.00024931,2]
[378069053,1754716266864,-400.0,0.00024931,2]
[378069055,1754716266874,-400.0,0.00024931,2]
[378069057,1754716266884,-400.0,0.00024931,2]
[378069059,1754716266893,-400.0,0.00024931,2]